Cogmind - Beta 15 @@@ ROGUE MODE // 2025.07.04 @ 15:14:54 Player: beans Result: Destroyed by G7-Z6R(j) with Overtuned Pulse Rifle Performance ------------- Evolutions (0) 0 Regions Visited (3) 600 Robots Destroyed (6) 30 Value Destroyed (277) 277 Prototype IDs (6) 120 Alien Tech Used (0) 0 Bonus (800) 800 TOTAL SCORE: 1827 Bonus ------- Registered with UFD 300 Met Optimus in HQ 500 Cogmind --------- Core Integrity 0/250 Matter 260/300 Energy 50/100 System Corruption 0% Temperature Cool (18) Movement Walking (100) Location -8/Scraptown Parts ------- > --- POWER (1) -------- (None) > --- PROPULSION (2) --- Overtuned Titanium Leg Overtuned Titanium Leg > --- UTILITY (2) ------ Scrap Suit > --- WEAPON (2) ------- Autogun > --- INVENTORY (5) ---- 0b10 Decoder Chip [Skirmisher] A0-MCA's Component Scanner Peak State ------------ > --- POWER ------------ Light Fission Core > --- PROPULSION ------- Overtuned Titanium Leg Overtuned Titanium Leg > --- UTILITY ---------- Scrap Suit > --- WEAPON ----------- High-powered Shotgun Battle Cannon > --- INVENTORY -------- 0b10 Decoder Chip [Skirmisher] A0-MCA's Component Scanner Shock Rifle Salvaging Laser Autogun [Rating: 26] Favorites ----------- Power Light Fission Core Engine Light Ion Engine Power Core Light Fission Core Propulsion Aluminum Leg Leg Aluminum Leg Hover Unit Hover Unit Utility Scrap Suit Device Scrap Suit Weapon High-powered Shotgun Energy Gun Salvaging Laser Ballistic Gun High-powered Shotgun Ballistic Cannon Battle Cannon Build | -11 -10 -10 -8 ------- Run | Yrd Mat Sub Scr Slots Evolved . | . . . . Power . | . . . . Propulsion . | . . . . Utility . | . . . . Weapon . | . . . . Parts Attached 15 | 3 2 2 8 Power 3 | 1 . . 2 Engine 2 | 1 . . 1 Core 1 | . . . 1 Reactor . | . . . . Propulsion 6 | 2 2 . 2 Treads . | . . . . Leg 4 | 2 . . 2 Wheel . | . . . . Hover 2 | . 2 . . Flight . | . . . . Utility 1 | . . . 1 Device 1 | . . . 1 Storage . | . . . . Processor . | . . . . Hackware . | . . . . Protection . | . . . . Artifact . | . . . . Weapon 5 | . . 2 3 Energy Gun 2 | . . 1 1 Energy Cannon . | . . . . Ballistic Gun 2 | . . . 2 Ballistic Cannon 1 | . . 1 . Launcher . | . . . . Special Weapon . | . . . . Impact Weapon . | . . . . Slashing Weapon . | . . . . Piercing Weapon . | . . . . Special Melee Weapon . | . . . . Unidentified Prototypes . | . . . . Parts Lost 6 | . . . 6 Power 2 | . . . 2 Propulsion . | . . . . Utility . | . . . . Weapon 4 | . . . 4 Highest Loss Streak 4 | . . . 4 To Critical Strikes . | . . . . Average Backups 3 | . 1 2 4 Power . | . . . . Propulsion . | . 1 2 . Utility 1 | . . . 1 Weapon 2 | . . . 2 Tool/Special . | . . . . Unused Backups 4 | . . . 4 Power . | . . . . Propulsion 1 | . . . 1 Utility 3 | . . . 3 Weapon . | . . . . Tool/Special . | . . . . Average Slot Usage (%) 76 | . 40 59 82 Engine 6 | . 14 14 4 Core 7 | . . . 8 Leg 23 | . 14 . 27 Hover 4 | . 12 28 . Device 9 | . . . 12 Energy Gun 1 | . . 10 . Ballistic Gun 12 | . . . 15 Ballistic Cannon 10 | . . 6 12 Peak Build Rating 26 | 3 3 6 26 Average Rating 16 | 2 2 4 19 On Entrance 3 | . 3 3 6 Naked Turns . | . . . . Heaviest Build 18 | 3 3 7 18 Greatest Support 38 | 20 20 12 38 Greatest Overweight (x) . | . . . . Average Overweight (x) . | . . . . Largest Inventory Capacity 5 | 5 5 5 5 Average Capacity 5 | 5 5 5 5 Most Carried 5 | 3 3 3 5 Average Carried 3 | . 1 2 4 Final Capacity 5 | 5 5 5 5 Final Carried 2 | . 2 2 2 Class Distribution -------------------- 64% | Scrapper 28% | Mutant 7% | Scavenger-Scrapper Dominant Class ---------------- Mutant | -10/Materials Mutant | -10/Subcaves Scrapper | -8/Scraptown Resources | -11 -10 -10 -8 ----------- Run | Yrd Mat Sub Scr Matter Collected 531 | 175 24 25 307 Remotely . | . . . . Salvage Created 296 | . . . 296 Parts 14 | . . . 14 Haulers Intercepted . | . . . . Recyclers Shooed . | . . . . Parts Field Recycled . | . . . . Retrieved Matter . | . . . . Parts Self-Destructed 15 | . . 13 2 Prevented . | . . . . Kills | -11 -10 -10 -8 ------- Run | Yrd Mat Sub Scr Combat Hostiles Destroyed 6 | . . . 6 Guns 5 | . . . 5 Cannons 1 | . . . 1 Classes Destroyed 3 | . . . 3 Explorer 1 | . . . 1 Ranger 2 | . . . 2 Scrapper 3 | . . . 3 Best Kill Streak 3 | . . . 3 Combat Bots Only 3 | . . . 3 Max Kills in Single Turn 1 | . . . 1 Gunslinging . | . . . . Exploded . | . . . . Melee . | . . . . Uniques/NPCs Destroyed . | . . . . Combat | -11 -10 -10 -8 -------- Run | Yrd Mat Sub Scr Hostile Shots Fired 126 | . . 2 124 Missed 38 | . . . 38 Hits 88 | . . 2 86 Melee 1 | . . . 1 Projectile 87 | . . 2 85 Critical Strikes 4 | . . . 4 Damage Taken 1310 | . . 15 1295 Core 264 | . . 9 255 Absorbed by Shields . | . . . . Regen/Repaired (Parts) 31 | . . . 31 Core Remaining (%) 100 | 100 . . . Volleys Fired 38 | . . . 38 Largest 2 | . . . 2 Hottest 58 | . . . 58 Shots Fired 63 | . . . 63 Gun 46 | . . . 46 Cannon 17 | . . . 17 Launcher . | . . . . Special . | . . . . Kinetic 63 | . . . 63 Thermal . | . . . . Explosive . | . . . . Electromagnetic . | . . . . Robot Hit Streak 6 | . . . 6 Robot Miss Streak 5 | . . . 5 Penetration Max . | . . . . Secondary Targets 2 | . . . 2 Max Gunslinging Chain 1 | . . . 1 Shots Hit Robots 40 | . . . 40 Core Hits 17 | . . . 17 Critical Kills . | . . . . Critical Parts Destroyed . | . . . . Critical Strikes . | . . . . Melee Attacks . | . . . . Impact . | . . . . Slashing . | . . . . Piercing . | . . . . Sneak Attacks . | . . . . Combat Hostiles . | . . . . Follow-up Attacks . | . . . . Damage Inflicted 706 | . . . 706 Guns 490 | . . . 490 Cannons 216 | . . . 216 Explosions . | . . . . Melee . | . . . . Ramming . | . . . . Kinetic 706 | . . . 706 Thermal . | . . . . Explosive . | . . . . Electromagnetic . | . . . . Impact . | . . . . Slashing . | . . . . Piercing . | . . . . Highest Corruption . | . . . . Average Corruption . | . . . . Corruption Purged . | . . . . Corruption Blocked . | . . . . Overload Shots . | . . . . Overflow Damage . | . . . . Projectiles . | . . . . Explosions . | . . . . Melee . | . . . . Knockbacks . | . . . . Impact . | . . . . Kinetic . | . . . . Secondary . | . . . . Self-Inflicted Damage . | . . . . Shots . | . . . . Rammed . | . . . . Targets Rammed . | . . . . Kicked . | . . . . Crushed . | . . . . Highest Temperature 257 | . . . 257 Average Temperature 59 | . . . 59 Received Heat Transfer 654 | . . . 654 Siege Activations . | . . . . Martial Activations . | . . . . Shielding Activations . | . . . . Robots Disrupted . | . . . . Combat Hostiles . | . . . . Robots Corrupted . | . . . . Combat Hostiles . | . . . . Parts Fried . | . . . . Impact Corruptions . | . . . . Robots Melted . | . . . . Combat Hostiles . | . . . . Parts Melted 2 | . . . 2 Heat Transferred . | . . . . Parts Sabotaged . | . . . . Parts Stolen . | . . . . Parts Stripped . | . . . . Power Chain Reactions . | . . . . Alert | -11 -10 -10 -8 ------- Run | Yrd Mat Sub Scr Maximum Alert Level . | . . . . Low Security (%) 100 | 100 100 . . Level 1 . | . . . . Level 2 . | . . . . Level 3 . | . . . . Level 4 . | . . . . Level 5 . | . . . . High Security . | . . . . Max Security . | . . . . Peak Influence . | . . . . Initial . | . . . . Average . | . . . . Influence Increases . | . . . . Influence Decreases . | . . . . Squads Dispatched . | . . . . Investigation . | . . . . Extermination . | . . . . Reinforcement . | . . . . Assault . | . . . . Garrison . | . . . . Intercept . | . . . . Searches Triggered . | . . . . Construction Impeded . | . . . . Haulers Reinforced . | . . . . Active Scanning Responses . | . . . . Cargo Convoy Interrupts . | . . . . Stealth | -11 -10 -10 -8 --------- Run | Yrd Mat Sub Scr Distress Signals . | . . . . Communications Jammed . | . . . . Distress Signals . | . . . . Times Spotted 42 | . 1 3 38 Peak Tracking Total 4 | . 1 3 4 Tactical Retreats . | . . . . Traps | -11 -10 -10 -8 ------- Run | Yrd Mat Sub Scr Traps Triggered 1 | . 1 . . Indirectly . | . . . . Trap Hack Attempts . | . . . . Triggered . | . . . . Disarmed . | . . . . Reprogrammed . | . . . . Reused . | . . . . Traps Extracted . | . . . . Installed . | . . . . Triggered . | . . . . Machines | -11 -10 -10 -8 ---------- Run | Yrd Mat Sub Scr Machines Disabled . | . . . . Max in Single Turn . | . . . . Machines Repaired . | . . . . Machines Dismantled . | . . . . Machines Sabotaged . | . . . . Overloaded Fab Kills . | . . . . Hacking | -11 -10 -10 -8 --------- Run | Yrd Mat Sub Scr Machines Accessed 2 | . . . 2 Terminals . | . . . . Fabricators . | . . . . Repair Stations . | . . . . Recycling Units . | . . . . Scanalyzers . | . . . . Garrison Access . | . . . . Total Hacks 8 | . . . 8 Successful 8 | . . . 8 Failed . | . . . . Catastrophic . | . . . . Database Lockouts . | . . . . Manual . | . . . . Terminals . | . . . . Fabricators . | . . . . Repair Stations . | . . . . Recycling Units . | . . . . Scanalyzers . | . . . . Garrison Access . | . . . . Terminal Hacks 8 | . . . 8 Robot Analysis 7 | . . . 7 Proto ID Catalog 1 | . . . 1 Fabricator Hacks . | . . . . Repair Station Hacks . | . . . . Recycling Unit Hacks . | . . . . Scanalyzer . | . . . . Garrison Access Hacks . | . . . . Unauthorized Hacks . | . . . . Terminals . | . . . . Fabricators . | . . . . Repair Stations . | . . . . Recycling Units . | . . . . Scanalyzers . | . . . . Garrison Access . | . . . . Data Cores Recovered . | . . . . Used . | . . . . Hacking Detections . | . . . . Full Trace Events . | . . . . Feedback Events . | . . . . Feedback Blocked . | . . . . Robot Schematics Acquired . | . . . . Robots Built . | . . . . Authchips . | . . . . Time . | . . . . Total Robot Build Rating . | . . . . Part Schematics Acquired . | . . . . Parts Built . | . . . . Authchips . | . . . . Time . | . . . . Total Part Build Rating . | . . . . Parts Repaired . | . . . . Time . | . . . . Parts Recycled . | . . . . Recycled Matter . | . . . . Retrieved Matter . | . . . . Retrieved Components . | . . . . Parts Scanalyzed . | . . . . Part Schematics Acquired . | . . . . Parts Damaged . | . . . . Bothacking | -11 -10 -10 -8 ------------ Run | Yrd Mat Sub Scr Used RIF Installer . | . . . . Robots Hacked . | . . . . Non-combat . | . . . . Combat . | . . . . Robot Hacks Applied . | . . . . Relay Couplers Released . | . . . . Fabnet Peak Effective % . | . . . . Robots Rewired . | . . . . Allies Hacked . | . . . . Hacks Repelled . | . . . . Allies | -11 -10 -10 -8 -------- Run | Yrd Mat Sub Scr Total Allies 1 | . . . 1 Largest Group . | . . . . Highest-Rated Group . | . . . . Highest-Rated Ally . | . . . . Total Orders . | . . . . Ally Attacks . | . . . . Total Damage . | . . . . Kills . | . . . . Allies Corrupted . | . . . . Allies Melted 7 | . . . 7 Intel | -11 -10 -10 -8 ------- Run | Yrd Mat Sub Scr Active Infowar (turns) . | . . . . Robot Analysis Total 7 | . . . 7 Derelict Logs Recovered . | . . . . Drone Launches . | . . . . Drone Recoveries . | . . . . Exploration | -11 -10 -10 -8 ------------- Run | Yrd Mat Sub Scr Turns Passed 2513 | 34 165 268 2046 Spaces Moved 1574 | 30 96 164 1284 Core 11 | 11 . . . Treads . | . . . . Legs 1354 | 19 73 . 1262 Wheels . | . . . . Hover 209 | . 23 164 22 Flight . | . . . . Fastest Speed 50 | 50 56 56 56 Average Speed 106 | 94 104 56 112 Slowest Speed 120 | 120 120 56 120 Overloaded Moves . | . . . . Propulsion Burnouts . | . . . . Robots Hopped . | . . . . Potential Cave-ins . | . . . . Cave-ins Triggered . | . . . . Exploration Rate (%) 24 | 3 27 16 51 Regions Visited 3 Branch Regions 2 Pre-discovered Areas . | . . . . Known Exits Taken . | . . . . Unknown Exits Taken 3 | 1 1 1 . Scrap Searched 3 | . . . 3 Spaces Dug . | . . . . Terrain Destroyed 2 | . . . 2 Melee . | . . . . Projectile 2 | . . . 2 AOE . | . . . . Terrain Rammed . | . . . . Walls Destroyed . | . . . . Machines Disabled . | . . . . Actions | -11 -10 -10 -8 --------- Run | Yrd Mat Sub Scr Total 2357 | 35 159 339 1824 Wait 703 | . 59 172 472 Move 1571 | 29 95 163 1284 Hop . | . . . . Pick Up 18 | 3 3 2 10 Fast Attach 1 | . . . 1 Attach 10 | 3 1 2 4 Detach . | . . . . Swap 7 | . 1 . 6 Drop 9 | . . . 9 Fire 38 | . . . 38 Melee . | . . . . Ram . | . . . . Kick . | . . . . Crush . | . . . . Escape Stasis . | . . . . Rewire . | . . . . Trap . | . . . . Miscellaneous . | . . . . Route ------- -11/Scrapyard -10/Materials (discovered 2 exits: [*Mat] / [*Sub]) -10/Subcaves -8/Scraptown (discovered 2 exits: Fac x2) History --------- Turn | Location | Event 2 | -11/Scrapyard | Met Revision 17 3 | -11/Scrapyard | Discovered new exit (range 15) 35 | -11/Scrapyard | Entered Materials 36 | -10/Materials | Met a group of wandering Federalists 117 | -10/Materials | Discovered new exit (range 12) 148 | -10/Materials | Discovered new exit (range 5) 200 | -10/Materials | Entered Subcaves 201 | -10/Subcaves | Continued accompanying wandering Federalists (5) 302 | -10/Subcaves | Build established: Mutant 463 | -10/Subcaves | Wandering Federalist uncovered a shortcut to Scraptown 468 | -10/Subcaves | Entered Scraptown 612 | -8/Scraptown | Heard Great Nut preacher, LISTEN AND RECITE! 652 | -8/Scraptown | Visited UFD Registry 652 | -8/Scraptown | Registered with UFD as "Hellmaster" 703 | -8/Scraptown | Visited Analyses Database 732 | -8/Scraptown | Visited Scrap Suit Storage 741 | -8/Scraptown | Found Scrap Suit 782 | -8/Scraptown | Visited A0-MCA Data Center 796 | -8/Scraptown | Given an A- rating by A0-MCA 799 | -8/Scraptown | Found A0-MCA's Component Scanner 822 | -8/Scraptown | Visited Observation Area 869 | -8/Scraptown | Visited Abandonware Association 920 | -8/Scraptown | Visited Supply Room 959 | -8/Scraptown | Visited Science Guys 999 | -8/Scraptown | Visited Supply Room 1028 | -8/Scraptown | Build established: Scrapper 1054 | -8/Scraptown | Visited Research Penetration Think Tank 1084 | -8/Scraptown | Visited Botcube Research 1093 | -8/Scraptown | Botcube activated 1360 | -8/Scraptown | Met Optimus 1360 | -8/Scraptown | Accepted into 0bPrime 1760 | -8/Scraptown | Civil war broke out across Scraptown 1823 | -8/Scraptown | Lost 4 allies 1835 | -8/Scraptown | Identified exit to Factory 2244 | -8/Scraptown | Core integrity fell below 50% 2370 | -8/Scraptown | Lost 5 allies 2421 | -8/Scraptown | Lost 3 allies 2484 | -8/Scraptown | Core integrity fell below 20% 2514 | -8/Scraptown | Destroyed by G7-Z6R(j) with Overtuned Pulse Rifle Last Messages --------------- Acquired 5 matter. HB-C5Z(x) destroyed. Bolt penetrates 05-QMB(j). JA-211(j) heat short circuits Ovr. Titanium Leg. Bolt Gun destroyed. 05-QMB(j) cannibalizes Ovr. Pulse Rifle to repair Ovr. Pulse Rifle. Critical hit (Burn: +50). Hpw. Shotgun destroyed. Imp. Deuterium Engine destroyed. Shock Rifle destroyed. Critical hit (Burn: +50). 05-QMB(j) heat short circuits Lgt. Deuterium Engine. 05-QMB(j) cannibalizes Ovr. Titanium Leg to repair Ovr. Titanium Leg. JA-211(j) heat damages Mak. Salvage Targeting Computer. 05-QMB(j) cannibalizes VSS Leg to repair Ovr. Titanium Leg. Map ----- +----------------------------------------------------+ | #######%###?#######!#####%!## ########???????????? | | #######*#####"#####!#####![##!#############??????? | | """ " "=!* !=%=!=" ""!!="%"## *! "#??????? | | %=%=%[[![!%%*%=![![=! "## [ ""#??????? | | !*=!=!= %!!%!!=%*!%* ! ## !"""" "#??????? | | = !!=%! [*!*&!==![=!! !*##!!"### "#??????? | | % =%!=%= !=%!*[%!% [**##[*"#X =""#??????? | | / =%! ! ! =%! *!=[%===!## "#??????? | | """""""""""""" """" [!! [%=%#!["""" "#??????? | | """""""""""""""""""""""=" !!![# * ""#??????? | | ##### ################"" = ## "#??????? | | ##????????#"" =% ############??????? | | X"#????????#""=! * ## "===#?????????? | | "" "" ##????????#""%!%% "## ""#?????????? | | "" "" X"#??????###""!=[ =## ""!!"#?????????? | | " " ######### #" * %[%[;! "!!"#?????????? | | " !=%*! *% [%!%j !=% #?????????? | | *"! [!=%= =%=%! !*j## !!""[#?????????? | | " [%! ######### =""!%[!==##[%= " #?????????? | | "" ! "" ""#??????###""[! ! "##""***[#?????????? | | "" "" ##????????#"" !"##############????? | | X"#????????#"" "##" """""""""#????? | | ##????????#"" "## """"" """#????? | | ##### ################"" "## "" """#????? | | """"""""""""""""""""""""" "##j " ""#????? | | [! """"" "" """""""""@ = ""#????? | | *! *%= =%!"## "" "#????? | | =% %! ! ## "" X"#????? | | !! = =%= ## """ "#????? | | % %!*= = ! ## "!"""#????? | | !!%!%* !%* !%! # "" """"""#????? | | =%!"""[""""" ""!"" """"" =%=## "& """"""#????? | | "##"#####%########### ######[[ ;#############????? | | "####" !!= #??# ##%[ ##????????????????? | | "#??#"" ! "#??# ##=!!#?????????????????? | | " #??#"" #??#"" !"##=%%#?????????????????? | | ""#??#"" "#??#""[[[[" ##%%=#?????????????????? | | ""#??#"" "#??#!![""[!"##%%!##????????????????? | | ###??#""""" ""#??#!!"""[""##!!j[###########??????? | | ?????#""""""""#??###########=% !%= #??????? | | ?????##########???????????#" = !!! [ ##??????? | | ??????????????????????????##!==%=%= !%= #??????? | | ???????????????????????????#=% ![!* !*! #??????? | | ???????????????????????????#%!= =%! #??????? | | ???????????????????????????# %############??????? | | ############################ *#####?????????????? | | ""##"""##"""##"""##"""##"|"# """#?????????????? | | ""## ""##" "##"""##""|##" # " "#?????????????? | | = * "#?????????????? | | ![=[!! " "#?????????????? | +----------------------------------------------------+ Best States ------------- Heat Dissipation 25 Energy Generation 18 Energy Capacity 290 Matter Stores 300 Matter Capacity 300 Sight Range 16 Terrain Scan Density 10 Evasion (%) 55 Item Schematics ----------------- None Robot Schematics ------------------ None Fabricated ------------ Nothing Repaired ---------- Nothing Alien Tech Used ----------------- None Achievements -------------- None Challenges ------------ None Game ------ Seed RemoteNanofilamentsSlayer Manual? 0 Play Time 00:21:50 Cumulative 37.8 hours Start 2025.07.04 @ 14:51:30 End 2025.07.04 @ 15:14:54 Sessions 1 Manual Loads 0 Difficulty Rogue Special Mode None Game No. 177 Rogue 177 Adventurer 0 Explorer 0 Win Type - Total 0 Types 0/0/0/0/0/0/0/0/0/0 Lore% 28 Gallery% 24 Achievement% 20 Wizard Run 0 Options --------- Layout 2 ASCII 0 Keyboard 0 Movement Mouse Keybinds 0 Fullscreen 1 Font 24/Smallcaps Map View 50x44 Zoom Use 0% Tactical HUD 0 Map Filters NONE Filters NONE Steam 1 RUN: 85c72aac-b204-43d7-95c6-9cc1bd0e9f81